bitfinex-derivatives/quotes_BTCF0:USTF0_20250508
["timestamp","ask_amount","ask_price","bid_price","bid_amount"]
[1746664256261,0.27243887,97221.0,97220.0,0.54840578]
[1746664256449,0.27243887,97221.0,97220.0,0.65070578]
[1746664256655,0.37728251,97221.0,97220.0,0.65070578]
[1746664256960,0.37528251,97221.0,97220.0,0.65070578]
[1746664257260,0.20728251,97221.0,97220.0,0.65070578]
[1746664257449,0.20728251,97221.0,97220.0,0.65170578]
[1746664258764,0.20528251,97221.0,97220.0,0.65170578]
[1746664259065,0.20528251,97221.0,97220.0,0.65270578]
[1746664259366,0.10043887,97221.0,97220.0,0.65270578]
[1746664259554,0.10043887,97221.0,97220.0,0.65170578]
[1746664259862,0.10043887,97221.0,97220.0,0.65270578]
[1746664260562,0.10043887,97221.0,97220.0,0.65170578]
[1746664261063,0.10043887,97221.0,97220.0,0.65270578]
[1746664261256,0.10043887,97221.0,97220.0,0.65170578]
[1746664262054,0.10043887,97221.0,97220.0,0.65270578]
[1746664262565,0.10043887,97221.0,97220.0,0.62700254]
[1746664262766,0.10043887,97221.0,97220.0,0.62800254]
[1746664263063,0.10043887,97221.0,97220.0,0.7448681]
[1746664263269,0.10043887,97221.0,97220.0,0.7458681]
[1746664264369,0.10043887,97221.0,97220.0,0.6958681]
[1746664264571,0.20528251,97221.0,97220.0,0.6948681]
[1746664264762,0.20528251,97221.0,97220.0,1.1135681]
[1746664264962,0.20528251,97221.0,97220.0,1.0612681]
[1746664265163,0.37328251,97221.0,97220.0,1.04840142]
[1746664266368,0.37328251,97221.0,97220.0,0.68760142]
[1746664267661,0.26843887,97221.0,97220.0,0.26990142]
[1746664269973,0.47412487,97221.0,97220.0,0.26990142]
[1746664270367,0.393616,97221.0,97220.0,0.24519535]
[1746664270972,0.18793,97221.0,97220.0,0.24519535]
[1746664274467,0.393616,97221.0,97220.0,0.2076881]
[1746664274668,0.393616,97221.0,97220.0,0.07704]
[1746664274872,0.393616,97221.0,97220.0,0.2827281]
[1746664274873,0.18793,97221.0,97220.0,0.2827281]
[1746664280080,0.18793,97221.0,97220.0,0.26985991]
[1746664282376,0.18793,97221.0,97220.0,0.24515314]
[1746664282576,1.68793,97221.0,97220.0,0.24515314]
[1746664282978,0.2057029,97213.0,97212.0,0.3608]
[1746664283184,0.2057092,97210.0,97209.0,1e-08]
[1746664283383,0.205724,97203.0,97202.0,0.04925278]
[1746664283701,0.205724,97203.0,97202.0,0.18770838]
[1746664284200,0.2057283,97201.0,97200.0,0.2807704]
[1746664284791,0.2579283,97201.0,97200.0,0.2807704]
[1746664284993,0.2057346,97198.0,97197.0,0.00154325]
[1746664285190,0.3737346,97198.0,97197.0,0.20727995]
[1746664285397,0.168,97198.0,97197.0,0.20727995]
[1746664285597,1.668,97198.0,97197.0,0.20727995]
[1746664286197,1.7202,97198.0,97197.0,0.20727995]
[1746664286405,1.7202,97198.0,97197.0,0.26000428]
[1746664286605,1.7212,97198.0,97197.0,0.21627995]
[1746664287303,1.7222,97198.0,97197.0,0.22627995]
[1746664288805,1.9279346,97198.0,97197.0,0.22627995]
[1746664289706,1.80270887,97198.0,97197.0,0.28137995]
[1746664290001,0.25050887,97198.0,97197.0,0.28137995]
[1746664290307,0.25050887,97198.0,97197.0,0.37990961]
[1746664290308,0.08250887,97198.0,97197.0,0.37990961]
[1746664290506,0.08250887,97198.0,97197.0,0.35519876]
[1746664293809,0.002,97198.0,97197.0,0.35519876]
[1746664296112,0.08250887,97198.0,97197.0,0.35519876]
[1746664298107,0.08250887,97198.0,97197.0,0.486136]
[1746664298510,0.08250887,97198.0,97197.0,0.46142779]
[1746664298706,0.08250887,97198.0,97197.0,0.44341139]
[1746664300816,0.08250887,97198.0,97197.0,0.7712]
[1746664301319,0.08250887,97198.0,97197.0,0.9769367]
[1746664305324,0.08250887,97198.0,97197.0,0.8089367]
[1746664306522,0.08250887,97198.0,97197.0,0.78422767]
[1746664307124,0.08250887,97198.0,97197.0,0.95222767]
[1746664307625,0.002,97198.0,97197.0,1.31302767]
[1746664308224,0.002,97198.0,97197.0,1.14502767]
[1746664308524,0.002,97198.0,97197.0,0.78422767]
[1746664308716,0.002,97198.0,97197.0,1.14502767]
[1746664309125,0.002,97198.0,97197.0,1.31302767]
[1746664310024,0.002,97198.0,97197.0,1.25702767]
[1746664310327,0.2077346,97198.0,97197.0,0.9842367]
[1746664310620,0.002,97198.0,97197.0,0.9842367]
[1746664310812,0.002,97198.0,97197.0,0.97136577]
[1746664311012,0.1124,97198.0,97197.0,0.97136577]
[1746664311226,0.2804,97198.0,97197.0,0.97136577]
[1746664312226,0.2804,97198.0,97197.0,0.9533461]
[1746664314424,0.2804,97198.0,97197.0,0.92863481]
[1746664314624,0.2804,97198.0,97197.0,0.98213481]
[1746664315221,0.1124,97198.0,97197.0,0.98213481]
[1746664315630,0.1124,97198.0,97197.0,0.6200367]
[1746664317331,0.1124,97198.0,97197.0,0.6760367]
[1746664319325,0.1124,97198.0,97197.0,0.6200367]
[1746664320327,0.1124,97198.0,97197.0,0.6751367]
[1746664320328,0.0566,97198.0,97197.0,0.6751367]
[1746664321333,0.0566,97198.0,97197.0,0.8431367]
[1746664321632,0.0566,97198.0,97197.0,1.19236621]
[1746664322533,0.0566,97198.0,97197.0,1.16765843]
[1746664325631,0.0566,97198.0,97197.0,1.27054243]
[1746664326033,0.0566,97198.0,97197.0,1.16765843]
[1746664326233,0.01599157,97198.0,97197.0,1.27054243]
[1746664331040,0.01599157,97198.0,97197.0,0.94731881]
[1746664331343,0.01599157,97198.0,97197.0,1.30811881]
[1746664333150,0.01599157,97198.0,97197.0,1.20523481]
[1746664334446,0.00379157,97198.0,97197.0,1.20523481]
[1746664335149,0.00379157,97198.0,97197.0,1.03723481]
[1746664336153,0.00379157,97198.0,97197.0,1.20523481]
[1746664337456,0.00379157,97198.0,97197.0,1.15013481]
[1746664338255,0.00379157,97198.0,97197.0,0.98213481]
[1746664338459,0.00379157,97198.0,97197.0,0.92863481]
[1746664339046,0.05499157,97198.0,97197.0,0.92863481]
[1746664339250,0.05499157,97198.0,97197.0,0.91576587]
[1746664339653,0.05499157,97198.0,97197.0,0.55366776]
[1746664340255,0.05499157,97198.0,97197.0,0.66076776]
[1746664340957,0.05499157,97198.0,97197.0,0.69195965]
[1746664341360,0.05499157,97198.0,97197.0,0.63605965]
[1746664342662,0.05499157,97198.0,97197.0,0.99815776]
[1746664344062,0.05499157,97198.0,97197.0,0.98014143]
[1746664345968,0.05499157,97198.0,97197.0,0.87304143]
[1746664348065,0.30350044,97198.0,97197.0,0.87304143]
[1746664348874,0.30350044,97198.0,97197.0,0.48752964]
[1746664349260,0.30350044,97198.0,97197.0,0.4746599]
[1746664351678,0.30350044,97198.0,97197.0,0.11256179]
[1746664352276,0.30350044,97198.0,97197.0,0.09454305]
[1746664356879,0.30350044,97198.0,97196.0,0.12683366]
[1746664357079,0.30350044,97198.0,97197.0,0.2057367]
[1746664358081,0.30450044,97198.0,97197.0,0.2057367]
[1746664359381,0.30450044,97198.0,97197.0,0.3110367]
[1746664359689,0.30450044,97198.0,97197.0,0.29816621]
[1746664360387,0.30450044,97198.0,97197.0,0.30416621]
[1746664360789,0.22399157,97198.0,97197.0,0.30416621]
[1746664364891,0.22399157,97198.0,97197.0,0.27945487]
[1746664369681,0.169,97198.0,97197.0,0.27945487]
[1746664369886,0.169,97198.0,97197.0,0.33155487]
[1746664370088,0.001,97198.0,97197.0,0.49955487]
[1746664375290,0.001,97198.0,97197.0,0.33155487]
[1746664375692,0.001,97198.0,97197.0,0.33255487]
[1746664375902,0.0544,97200.0,97199.0,0.2057325]
[1746664378202,0.0544,97200.0,97199.0,0.2067325]
[1746664379200,0.0554,97200.0,97199.0,0.18402447]
[1746664380401,0.0554,97200.0,97199.0,0.18202447]
[1746664380402,0.0544,97200.0,97199.0,0.18202447]
[1746664380605,0.0554,97200.0,97199.0,0.18402447]
[1746664380804,0.0554,97200.0,97199.0,0.54482447]
[1746664382090,0.001,97200.0,97199.0,0.71282447]
[1746664383202,0.13560887,97214.0,97207.0,0.0514286]
[1746664383401,0.0566,97213.0,97212.0,0.205705]
[1746664383705,0.0566,97213.0,97212.0,0.280665]
[1746664384004,0.1117,97213.0,97212.0,0.280665]
[1746664384206,0.2797,97213.0,97212.0,0.280665]
[1746664385506,0.2867,97213.0,97212.0,0.281665]
[1746664386306,0.2927,97213.0,97212.0,0.282665]
[1746664386615,0.2927,97213.0,97212.0,0.26979783]
[1746664387205,0.2927,97213.0,97212.0,0.24509284]
[1746664390806,0.2867,97213.0,97212.0,0.24409284]
[1746664391011,0.2907,97213.0,97212.0,0.24509284]
[1746664394303,0.1227,97213.0,97212.0,0.29609284]
[1746664395112,0.2907,97213.0,97212.0,0.29609284]
[1746664395508,0.2907,97213.0,97212.0,0.27138722]
[1746664396821,0.2907,97213.0,97212.0,0.2585197]
[1746664398616,0.2907,97213.0,97212.0,0.2075197]
[1746664399116,0.37121286,97213.0,97212.0,0.2075197]
[1746664399318,0.37121286,97213.0,97212.0,0.5683197]
[1746664399709,0.37121286,97213.0,97212.0,0.6189197]
[1746664400114,0.20321286,97213.0,97212.0,0.6189197]
[1746664401115,0.37121286,97213.0,97212.0,0.6189197]
[1746664402213,0.2907,97213.0,97212.0,0.6189197]
[1746664403520,0.2907,97213.0,97212.0,0.16480067]
[1746664404015,0.2907,97213.0,97212.0,0.07696]
[1746664404312,0.393568,97213.0,97212.0,0.282665]
[1746664405019,0.5789245,97213.0,97212.0,0.282665]
[1746664406515,0.6789245,97213.0,97212.0,0.282665]
[1746664406713,0.4760565,97213.0,97212.0,0.207705]
[1746664407017,0.4760565,97213.0,97212.0,0.282665]
[1746664407407,0.4760565,97213.0,97212.0,0.335265]
[1746664407610,0.4760565,97213.0,97212.0,0.333265]
[1746664407925,0.4730565,97213.0,97212.0,0.37369791]
[1746664408217,0.1137,97213.0,97212.0,0.37469791]
[1746664408517,0.1127,97213.0,97212.0,0.37669791]
[1746664409216,0.2807,97213.0,97212.0,0.37669791]
[1746664410414,0.2807,97213.0,97212.0,0.37769791]
[1746664411417,0.2807,97213.0,97212.0,0.35299418]
[1746664414020,0.08051286,97228.0,97227.0,0.2056733]
[1746664414221,0.08051286,97228.0,97227.0,0.2806333]
[1746664415221,0.25251286,97228.0,97227.0,0.2806333]
[1746664415414,0.25251286,97228.0,97227.0,0.3825333]
[1746664417112,0.03805902,97235.0,97234.0,0.2056585]
[1746664417311,0.0498,97235.0,97234.0,0.6414185]
[1746664417508,0.0498,97235.0,97234.0,0.5664585]
[1746664417718,0.0498,97235.0,97234.0,0.7433185]
[1746664418115,0.2178,97235.0,97234.0,0.73045358]
[1746664418419,1.7318,97235.0,97234.0,0.73245358]
[1746664418808,1.7318,97235.0,97234.0,0.68165358]
[1746664419215,1.7865,97235.0,97234.0,0.68165358]
[1746664419412,1.7865,97235.0,97234.0,0.65695335]
[1746664420221,1.7815,97235.0,97234.0,0.65595335]
[1746664420422,1.8358,97235.0,97234.0,0.65595335]
[1746664420722,1.8328,97235.0,97234.0,0.65595335]
[1746664423223,1.7781,97235.0,97234.0,0.65595335]
[1746664425023,1.7781,97235.0,97234.0,0.24405335]
[1746664426125,1.980944,97235.0,97234.0,0.07596]
[1746664426319,2.1866003,97235.0,97234.0,0.2816185]
[1746664427319,2.2366003,97235.0,97234.0,0.2816185]
[1746664427516,2.2366003,97235.0,97234.0,0.25691553]
[1746664428125,2.2366003,97235.0,97234.0,0.2440494]
[1746664428722,2.030944,97235.0,97234.0,0.2440494]
[1746664430018,2.030944,97235.0,97234.0,0.22603682]
[1746664430919,2.01144028,97235.0,97234.0,0.22603682]
[1746664431119,1.85859628,97235.0,97234.0,0.22603682]
[1746664435431,1.85859628,97235.0,97234.0,0.20133481]
[1746664436130,1.90859628,97235.0,97234.0,0.20133481]
[1746664438632,2.00859628,97235.0,97234.0,0.17045723]
[1746664439227,1.90859628,97235.0,97234.0,0.17045723]
[1746664440632,2.01343992,97235.0,97234.0,0.17045723]
[1746664440838,2.11343992,97235.0,97234.0,0.17045723]
[1746664443439,2.11343992,97235.0,97234.0,0.14575384]
[1746664444933,2.21628392,97235.0,97234.0,0.14575384]
[1746664445233,2.21628392,97235.0,97233.0,0.07496]
[1746664445435,0.6693025,97234.0,97233.0,0.2806206]
[1746664446035,2.065044,97234.0,97233.0,0.2806206]
[1746664446236,2.4387031,97234.0,97231.0,0.1542471]
[1746664446436,2.3358591,97234.0,97233.0,0.2056606]
[1746664446635,2.3398591,97234.0,97233.0,0.2066606]
[1746664446836,2.4457031,97234.0,97233.0,0.2066606]
[1746664447441,2.4457031,97234.0,97233.0,0.2056606]
[1746664447639,0.2056627,97232.0,97231.0,0.2066648]
[1746664447939,0.2056627,97232.0,97231.0,0.18865058]
[1746664448133,0.47651071,97232.0,97231.0,0.18865058]
[1746664448439,1.84791071,97232.0,97231.0,0.18865058]
[1746664448641,1.84791071,97232.0,97231.0,0.17578319]
[1746664449636,1.85091071,97232.0,97231.0,0.17578319]
[1746664449841,1.85391071,97232.0,97231.0,0.17678319]
[1746664451243,1.93440699,97232.0,97231.0,0.17678319]
[1746664451441,1.93440699,97232.0,97231.0,0.15207777]
[1746664454744,2.29520699,97232.0,97231.0,0.15207777]
[1746664455847,2.19235898,97232.0,97231.0,0.15207777]
[1746664456038,1.93440699,97232.0,97231.0,0.15207777]
[1746664456338,2.29520699,97232.0,97231.0,0.1340634]
[1746664456739,1.93440699,97232.0,97231.0,0.1340634]
[1746664456939,2.29520699,97232.0,97231.0,0.1340634]
[1746664457437,2.08954429,97232.0,97226.0,0.0514174]
[1746664457638,0.2570907,97229.0,97228.0,0.2570817]
[1746664457939,0.4070907,97229.0,97228.0,0.2570817]
[1746664458239,0.0514183,97227.0,97220.0,0.0514216]
[1746664458446,0.3608,97221.0,97217.0,0.0489]
[1746664458641,0.2571333,97213.0,97212.0,0.2056982]
[1746664458836,0.4108,97213.0,97212.0,0.2571237]
[1746664459040,0.5108,97213.0,97212.0,0.2571237]
[1746664459346,2.1545029,97213.0,97212.0,0.2571237]
[1746664459545,2.1545029,97213.0,97212.0,0.23241504]
[1746664459745,2.1555029,97213.0,97212.0,0.23841504]
[1746664459946,2.2071029,97213.0,97212.0,0.34391504]
[1746664460950,2.2081029,97213.0,97212.0,0.33791504]
[1746664461842,2.2111029,97213.0,97212.0,0.33291504]
[1746664462654,2.2111029,97213.0,97212.0,0.1005]
[1746664462950,0.2057283,97201.0,97199.0,0.3608]
[1746664463150,0.3737283,97201.0,97200.0,0.2072737]
[1746664463338,0.2651,97201.0,97200.0,0.2533737]
[1746664464151,0.4718283,97201.0,97200.0,0.2583737]
[1746664464353,0.5730283,97201.0,97200.0,0.0545433]
[1746664464552,0.5730283,97201.0,97200.0,0.053]
[1746664464846,1.8430283,97201.0,97200.0,0.053]
[1746664465046,1.8430283,97201.0,97200.0,0.058]
[1746664465047,1.8440283,97201.0,97200.0,0.058]
[1746664465854,1.8440283,97201.0,97200.0,0.03997973]
[1746664467452,1.8440283,97201.0,97200.0,0.01526691]
[1746664467652,1.8440283,97201.0,97200.0,0.005]
[1746664471557,0.2057812,97176.0,97175.0,0.00102907]
[1746664471859,0.3557939,97170.0,97169.0,0.08475507]
[1746664472057,0.15,97170.0,97169.0,0.08475507]
[1746664472256,1.7937939,97170.0,97169.0,0.08475507]
[1746664472857,1.7937939,97170.0,97169.0,0.11612421]
[1746664473058,1.7937939,97170.0,97169.0,0.16552421]
[1746664473259,2.1555939,97170.0,97169.0,0.17352421]
[1746664474660,2.1565939,97170.0,97169.0,0.17352421]
[1746664475461,2.1565939,97170.0,97169.0,0.14880295]
[1746664476162,2.2528939,97170.0,97169.0,0.14880295]
[1746664476760,0.0514491,97169.0,97147.0,0.00771779]
[1746664476964,0.3608,97150.0,97148.0,0.0493]
[1746664477164,0.2542384,97149.0,97148.0,0.0971]
[1746664477457,0.3034384,97149.0,97148.0,0.12888584]
[1746664478363,0.2058448,97146.0,97139.0,0.03072464]
[1746664478568,0.2058575,97140.0,97139.0,0.23658264]
[1746664478866,0.2058596,97139.0,97138.0,0.0493]
[1746664479062,1.5734596,97139.0,97138.0,0.2551617]
[1746664479261,1.5734596,97139.0,97138.0,0.0493]
[1746664479465,1.5734596,97139.0,97138.0,0.08132132]
[1746664480060,1.5734596,97139.0,97138.0,0.03302132]
[1746664480061,1.7424596,97139.0,97138.0,0.03302132]
[1746664480469,1.7424596,97139.0,97138.0,2.132e-05]
[1746664481366,1.7434596,97139.0,97138.0,2.132e-05]
[1746664481669,1.7434596,97139.0,97138.0,0.03176321]
[1746664482463,1.7434596,97139.0,97138.0,0.03174189]
[1746664482761,0.3058681,97135.0,97134.0,0.5666702]
[1746664483271,0.4738681,97135.0,97134.0,0.59728809]
[1746664483570,1.7038681,97135.0,97134.0,0.57255982]
[1746664484072,1.7048681,97135.0,97134.0,0.23648809]
[1746664484267,1.7058681,97135.0,97134.0,0.23648809]
[1746664484573,1.7058681,97135.0,97134.0,0.03061789]
[1746664484768,0.2058744,97132.0,97131.0,0.0494]
[1746664484976,0.5666744,97132.0,97131.0,0.0494]
[1746664485272,0.5666744,97132.0,97127.0,0.07666436]
[1746664485273,0.2058829,97128.0,97127.0,0.07666436]
[1746664485572,0.3058829,97128.0,97127.0,0.07666436]
[1746664485970,1.5358829,97128.0,97127.0,0.07666436]
[1746664486171,1.5811829,97128.0,97127.0,0.28254936]
[1746664486385,1.5821829,97128.0,97127.0,0.28254936]
[1746664487186,1.8001829,97128.0,97127.0,0.28254936]
[1746664487394,1.8011829,97128.0,97127.0,0.28254936]
[1746664487788,1.8011829,97128.0,97127.0,0.31463537]
[1746664488292,1.6331829,97128.0,97127.0,0.31463537]
[1746664488883,1.6331829,97128.0,97127.0,0.10875037]
[1746664489288,1.6321829,97128.0,97127.0,0.10875037]
[1746664489490,1.6421829,97128.0,97127.0,0.10875037]
[1746664490299,1.6421829,97128.0,97127.0,0.31463537]
[1746664490594,1.6501829,97128.0,97127.0,0.31463537]
[1746664491586,1.6501829,97128.0,97127.0,0.28990439]
[1746664491992,1.45215079,97128.0,97114.0,0.43596]
[1746664492294,0.15,97119.0,97118.0,0.2516027]
[1746664492698,1.38,97119.0,97118.0,0.23872175]
[1746664492891,1.4725,97119.0,97118.0,0.23872175]
[1746664493693,1.4805,97119.0,97118.0,0.23872175]
[1746664494198,1.4805,97119.0,97118.0,0.2206884]
[1746664494897,1.4805,97119.0,97115.0,0.0010297]
[1746664495199,0.2059083,97116.0,97115.0,0.0010297]
[1746664495894,1.4359083,97116.0,97115.0,0.0010297]
[1746664496196,1.6039083,97116.0,97115.0,0.0010297]
[1746664496395,1.6039083,97116.0,97115.0,1e-08]
[1746664496796,0.2059401,97101.0,97100.0,0.1]
[1746664497100,0.3559401,97101.0,97100.0,0.1]
[1746664497296,0.5239401,97101.0,97100.0,0.1]
[1746664497694,1.8510401,97101.0,97100.0,0.1]
[1746664499298,1.8540401,97101.0,97100.0,0.1]
[1746664499498,1.8540401,97101.0,97100.0,0.07526338]
[1746664499896,1.8580401,97101.0,97100.0,0.07526338]
[1746664500097,1.6900401,97101.0,97100.0,0.07526338]
[1746664501108,2.0508401,97101.0,97100.0,0.07526338]
[1746664501602,0.2059571,97093.0,97089.0,0.00154509]
[1746664501809,0.7167571,97093.0,97089.0,0.03268836]
[1746664502100,0.7167571,97093.0,97089.0,0.00154509]
[1746664502301,0.05149,97092.0,97082.0,0.0315454]
[1746664502614,0.2059953,97075.0,97074.0,0.0459]
[1746664502906,0.2559953,97075.0,97074.0,0.06416883]
[1746664503100,0.2559953,97075.0,97070.0,0.3608]
[1746664503101,0.0514993,97074.0,97070.0,0.3608]
[1746664503300,1.4360038,97071.0,97070.0,0.39282608]
[1746664503510,0.2060165,97065.0,97064.0,0.2519184]
[1746664503704,0.15,97065.0,97064.0,0.03101132]
[1746664503904,0.15,97065.0,97057.0,0.00154548]
[1746664503905,0.2060314,97058.0,97057.0,0.00154548]
[1746664504106,0.5240314,97058.0,97057.0,0.00154548]
[1746664504704,0.218,97058.0,97057.0,0.20757898]
[1746664505111,0.05,97058.0,97057.0,0.33845656]
[1746664505304,1.28,97058.0,97057.0,0.33845656]
[1746664505511,1.281,97058.0,97057.0,0.33845656]
[1746664505706,1.5870314,97058.0,97057.0,0.33845656]
[1746664505911,1.4870314,97058.0,97057.0,0.33845656]
[1746664506209,0.2060356,97056.0,97055.0,0.00103034]
[1746664506900,1.4360356,97056.0,97055.0,0.25246814]
[1746664507309,1.4370356,97056.0,97055.0,0.25246814]
[1746664507608,1.4370356,97056.0,97055.0,0.02168173]
[1746664507817,0.2060399,97054.0,97053.0,0.2060412]
[1746664508412,1.4360399,97054.0,97053.0,0.2060412]
[1746664508909,1.4370399,97054.0,97053.0,0.2060412]
[1746664509108,1.4370399,97054.0,97053.0,0.2537412]
[1746664509610,1.4380399,97054.0,97053.0,0.2537412]
[1746664509810,1.232,97054.0,97053.0,0.2537412]
[1746664510610,1.5380411,97054.0,97053.0,0.206042]
[1746664511002,1.332,97054.0,97053.0,0.206042]
[1746664511720,1.232,97054.0,97053.0,0.206042]
[1746664511924,1.232,97054.0,97053.0,0.300242]
[1746664512218,1.232,97054.0,97053.0,0.468242]
[1746664513112,1.231,97054.0,97053.0,0.468242]
[1746664513312,1.24,97054.0,97053.0,0.45535281]
[1746664513717,1.231,97054.0,97053.0,0.45535281]
[1746664513914,1.24,97054.0,97053.0,0.45535281]
[1746664514109,1.247,97054.0,97053.0,0.45535281]
[1746664514811,1.239,97054.0,97053.0,0.45535281]
[1746664515118,1.247,97054.0,97053.0,0.45535281]
[1746664515512,1.247,97054.0,97053.0,0.43060584]
[1746664515710,1.239,97054.0,97053.0,0.43060584]
[1746664515910,0.019,97054.0,97053.0,0.53364183]
[1746664516113,0.3608,97069.0,97068.0,0.2060102]
[1746664516415,1.6908,97069.0,97068.0,0.2060102]
[1746664516716,1.33,97069.0,97068.0,0.2060102]
[1746664517211,1.33,97069.0,97068.0,0.3740102]
[1746664517412,1.342,97069.0,97068.0,0.4231102]
[1746664518116,1.35,97069.0,97068.0,0.4241102]
[1746664518616,1.35,97069.0,97068.0,0.7849102]
[1746664518812,1.25,97069.0,97068.0,0.7849102]
[1746664519317,0.02,97069.0,97068.0,0.7849102]
[1746664520616,1.23,97071.0,97070.0,0.2060059]
[1746664521211,1.23,97071.0,97070.0,0.3740059]
[1746664522015,1.28,97071.0,97070.0,0.3740059]
[1746664522215,1.285,97071.0,97070.0,0.3750059]
[1746664523014,1.291,97071.0,97070.0,0.3760059]
[1746664523319,0.011,97071.0,97070.0,0.35796407]
[1746664523517,0.047,97085.0,97078.0,0.051497]
[1746664523713,0.047,97097.0,97096.0,0.2059508]
[1746664524018,1.54055303,97097.0,97096.0,0.16884082]
[1746664524217,1.54055303,97097.0,97096.0,0.33684082]
[1746664524408,1.58665303,97097.0,97096.0,0.168]
[1746664524603,1.58665303,97097.0,97096.0,0.3739508]
[1746664525115,1.59765303,97097.0,97096.0,0.3749508]
[1746664525415,1.60665303,97097.0,97096.0,0.3759508]
[1746664528117,1.60665303,97097.0,97096.0,0.2079508]
[1746664528521,1.38970443,97097.0,97084.0,0.0514922]
[1746664528717,0.257467,97087.0,97086.0,0.3089429]
[1746664529017,0.307467,97087.0,97086.0,0.3089429]
[1746664529418,0.407467,97087.0,97086.0,0.3089429]
[1746664529813,0.407467,97087.0,97086.0,0.3089449]
[1746664530414,0.412467,97087.0,97086.0,0.257452]
[1746664531110,0.2059741,97085.0,97084.0,0.2059747]
[1746664531313,0.2059805,97083.0,97082.0,0.2059788]
[1746664531718,0.2538805,97083.0,97082.0,0.18123639]
[1746664531918,0.3013805,97083.0,97082.0,0.18123639]
[1746664532321,0.3063805,97083.0,97082.0,0.18123639]
[1746664532822,0.2059826,97081.0,97080.0,0.25681325]
[1746664533018,0.3059826,97081.0,97080.0,0.2059829]
[1746664533522,0.2059847,97080.0,97079.0,0.0754]
[1746664533820,0.051499,97075.0,97073.0,0.05105713]
[1746664534025,0.2060059,97071.0,97069.0,0.4177]
[1746664534218,0.3458059,97070.0,97069.0,0.623708]
[1746664534417,0.2060144,97066.0,97065.0,0.07564]
[1746664534614,0.3560144,97066.0,97065.0,0.06275235]
[1746664536024,0.3560144,97066.0,97065.0,0.23565141]
[1746664536626,0.3570144,97066.0,97065.0,0.14393835]
[1746664537223,0.3570144,97066.0,97065.0,0.009]
[1746664537527,0.3570144,97066.0,97065.0,0.2150165]
[1746664537729,0.3560144,97066.0,97065.0,0.2100165]
[1746664537928,0.3600144,97066.0,97065.0,0.2100165]
[1746664538118,0.4519144,97066.0,97065.0,0.2060165]
[1746664538418,0.4559144,97066.0,97065.0,0.2060165]
[1746664539720,0.4559144,97066.0,97065.0,0.16322734]
[1746664541029,0.53641068,97066.0,97065.0,0.16322734]
[1746664541824,0.53641068,97066.0,97065.0,0.12610903]
[1746664544933,0.53641068,97066.0,97065.0,0.11322102]
[1746664546334,0.2060208,97063.0,97062.0,0.05034071]
[1746664546532,0.2560208,97063.0,97062.0,0.2060229]
[1746664547030,0.3510208,97063.0,97062.0,0.2060229]
[1746664547226,0.3510208,97063.0,97062.0,0.25749358]
[1746664547833,0.3580208,97063.0,97062.0,0.23274674]
[1746664548034,0.3580208,97063.0,97062.0,0.05147068]
[1746664548335,0.3580208,97063.0,97062.0,0.2060229]
[1746664548835,0.3580208,97063.0,97060.0,0.03851959]
[1746664548836,0.206025,97061.0,97060.0,0.03851959]
[1746664549438,0.206025,97061.0,97060.0,0.0204748]
[1746664550040,0.208025,97061.0,97060.0,0.0204748]
[1746664550938,0.211025,97061.0,97060.0,0.0204748]
[1746664551435,0.211025,97061.0,97060.0,0.2265019]
[1746664551633,0.29152128,97061.0,97060.0,0.2265019]
[1746664554541,0.211025,97061.0,97060.0,0.2265019]
[1746664555139,0.211025,97061.0,97060.0,0.00758566]
[1746664555638,0.2060293,97059.0,97058.0,0.23935552]
[1746664555833,0.2060293,97059.0,97058.0,0.03332452]
[1746664556034,0.2060314,97058.0,97057.0,0.20757718]
[1746664556235,0.4001314,97058.0,97057.0,0.20757718]
[1746664557344,0.1941,97058.0,97057.0,0.25859323]
[1746664557643,0.0941,97058.0,97057.0,0.24054844]
[1746664558040,0.0971,97058.0,97057.0,0.29034844]
[1746664558342,0.0971,97058.0,97057.0,0.45834844]
[1746664559647,0.0991,97058.0,97057.0,0.45834844]
[1746664560135,0.3051314,97058.0,97057.0,0.40854844]
[1746664560331,0.3051314,97058.0,97057.0,0.21901605]
[1746664560531,0.3551314,97058.0,97057.0,0.168]
[1746664560735,0.4551314,97058.0,97057.0,0.13087744]
[1746664561336,0.2060356,97056.0,97055.0,0.00103034]
[1746664562535,0.2060356,97056.0,97055.0,0.05281797]
[1746664563640,0.2060399,97054.0,97053.0,0.05196121]
[1746664564143,0.206061,97047.0,97046.0,0.2575644]
[1746664564633,0.206061,97047.0,97046.0,0.30884674]
[1746664565145,0.206061,97047.0,97046.0,0.05128234]
[1746664565441,0.5065,97047.0,97046.0,0.2060569]
[1746664565741,0.0492,97047.0,97046.0,0.17512028]
[1746664565943,0.08049628,97056.0,97054.0,0.2060399]
[1746664566240,0.2575499,97055.0,97054.0,0.3740399]
[1746664566435,0.2525403,97055.0,97054.0,0.3740399]
[1746664567239,0.2525403,97055.0,97054.0,0.2060399]
[1746664567442,0.2545403,97055.0,97054.0,0.2060399]
[1746664567840,0.1019,97055.0,97046.0,0.3608]
[1746664568148,0.2060632,97043.0,97042.0,0.436301]
[1746664568739,0.3018632,97043.0,97042.0,0.384785]
[1746664569046,0.3018632,97043.0,97042.0,0.3332695]
[1746664569948,0.3018632,97043.0,97042.0,0.2619895]
[1746664571151,0.3028632,97043.0,97042.0,0.2679895]
[1746664571347,0.3028632,97043.0,97042.0,0.23086032]
[1746664571849,0.3028632,97043.0,97042.0,0.20610754]
[1746664572047,0.3528632,97043.0,97042.0,0.01]
[1746664573352,0.2060717,97039.0,97038.0,0.2057728]
[1746664573544,0.2060781,97037.0,97036.0,0.2060771]
[1746664573943,0.3057781,97037.0,97036.0,0.2060771]
[1746664574144,0.3057781,97037.0,97036.0,0.3740771]
[1746664574654,0.3057781,97037.0,97036.0,0.21958239]
[1746664575144,0.3057781,97037.0,97036.0,0.23961106]
[1746664575541,0.3057781,97037.0,97036.0,0.22929106]
[1746664575751,0.3057781,97037.0,97036.0,0.21639857]
[1746664575955,0.3067781,97037.0,97036.0,0.22039857]
[1746664576147,0.3077781,97037.0,97036.0,0.22639857]
[1746664576548,0.4077781,97037.0,97036.0,0.02032047]
[1746664576743,0.48843774,97037.0,97036.0,0.02032047]
[1746664576947,0.48843774,97037.0,97036.0,0.22639857]
[1746664577147,0.48843774,97037.0,97036.0,0.02032047]
[1746664578257,0.38843774,97037.0,97036.0,0.02032047]
[1746664578654,0.48843774,97037.0,97036.0,0.02032047]
[1746664578861,0.53843774,97037.0,97036.0,0.01]
[1746664579253,0.70643774,97037.0,97036.0,0.01]
[1746664579761,0.2060781,97036.0,97035.0,0.06052498]
[1746664580065,0.2060781,97036.0,97035.0,0.26660518]
[1746664580269,0.3064781,97036.0,97035.0,0.26660518]